fUST/lending_fUST_20240919
["ID","MTS","AMOUNT","RATE_DAILY","PERIOD"]
[338512857,1726712576891,2800.0,0.00024,120]
[338512860,1726712666174,409.55,0.00010959,2]
[338512861,1726712676715,341.29,0.00010959,2]
[338512862,1726712687272,284.41,0.00010959,2]
[338512863,1726712708844,237.01,0.00010959,2]
[338512864,1726712719358,197.5,0.00010959,2]
[338512865,1726712729880,164.59,0.00010959,2]
[338512866,1726712740427,822.96,0.00010959,2]
[338512867,1726712745966,2298.0,0.00024,120]
[338512868,1726712806169,-160.77226653,0.00017363,2]
[338512880,1726713018096,217.4635316,0.00010959,2]
[338512881,1726713018130,29.2664684,0.00010959,2]
[338512905,1726713039326,-160.861266,0.00017458,2]
[338512906,1726713039335,-160.861266,0.00017534,2]
[338512907,1726713039345,-160.861266,0.00017609,2]
[338512908,1726713039354,-160.861266,0.00017685,2]
[338512909,1726713039363,-160.861266,0.00017761,2]
[338512910,1726713039373,-500.0,0.00017765,2]
[338512911,1726713039383,-416.730498,0.00017808,2]
[338512912,1726713039392,-160.861266,0.00017837,2]
[338512913,1726713039401,-500.0,0.0001785,2]
[338512914,1726713039412,-160.861266,0.00017913,2]
[338512915,1726713039423,-160.861266,0.00017988,2]
[338512916,1726713039435,-502.0,0.00018,3]
[338512917,1726713039446,-500.0,0.00018,2]
[338512918,1726713039456,-160.861266,0.00018064,2]
[338512919,1726713039467,-160.861266,0.0001814,2]
[338512920,1726713039476,-160.861266,0.00018216,2]
[338512921,1726713039485,-500.0,0.00018265,2]
[338512922,1726713039494,-160.861266,0.00018292,2]
[338512923,1726713039504,-611.4796325,0.00018304,2]
[338512924,1726713039514,-160.861266,0.00018368,2]
[338512925,1726713039524,-600.0,0.00018401,2]
[338512926,1726713039533,-300.0,0.00018502,2]
[338512927,1726713039543,-5991.16367814,0.00018503,2]
[338512928,1726713039553,-300.0,0.00018512,2]
[338512929,1726713039563,-1498.41698018,0.00018513,2]
[338512930,1726713039576,-1498.41698014,0.00018521,2]
[338512931,1726713039585,-1000.0,0.00018524,2]
[338512932,1726713039596,-1498.41698014,0.00018529,2]
[338512933,1726713039606,-1258.77548505,0.0001853,2]
[338512934,1726713039615,-1498.41698014,0.00018536,2]
[338512935,1726713039625,-1498.41698014,0.00018544,2]
[338512936,1726713039635,-5530.93492334,0.00018544,2]
[338512937,1726713039645,-3000.0,0.00018575,2]
[338512938,1726713039656,-598.74,0.000186,2]
[338512939,1726713039666,-600.0,0.00018603,2]
[338512940,1726713039677,-600.0,0.00018603,2]
[338512941,1726713039687,-600.0,0.00018603,2]
[338512942,1726713039698,-1609.52828369,0.00018606,2]
[338512943,1726713039707,-500.0,0.00018612,2]
[338512944,1726713039717,-511.08780001,0.00018612,2]
[338512945,1726713039727,-500.0,0.00018612,2]
[338512946,1726713039735,-500.0,0.00018612,2]
[338512947,1726713039751,-500.0,0.00018612,2]
[338512948,1726713039761,-500.0,0.00018612,2]
[338512949,1726713039771,-572.78824837,0.00018612,2]
[338512950,1726713039782,-500.0,0.00018612,2]
[338512951,1726713039792,-543.66594135,0.00018612,2]
[338512952,1726713039804,-500.0,0.00018612,2]
[338512953,1726713039816,-370.9091717,0.00018612,2]
[338512954,1726713039831,-572.78824837,0.00018612,2]
[338512955,1726713039841,-366.28635012,0.00018612,2]
[338512956,1726713039853,-500.0,0.00018612,2]
[338512957,1726713039865,-500.0,0.00018612,2]
[338512958,1726713039875,-572.78824837,0.00018612,2]
[338512959,1726713039886,-500.0,0.00018612,2]
[338512960,1726713039896,-500.0,0.00018612,2]
[338512961,1726713039906,-500.0,0.00018612,2]
[338512962,1726713039917,-572.78824837,0.00018612,2]
[338512963,1726713039927,-500.0,0.00018612,2]
[338512964,1726713039937,-500.0,0.00018612,2]
[338512965,1726713039947,-572.78824837,0.00018612,2]
[338512966,1726713039958,-500.0,0.00018612,2]
[338512967,1726713039970,-500.0,0.00018612,2]
[338512968,1726713039980,-500.0,0.00018612,2]
[338512969,1726713039990,-572.78824837,0.00018612,2]
[338512970,1726713039999,-500.0,0.00018612,2]
[338512971,1726713040010,-500.0,0.00018612,2]
[338512972,1726713040022,-572.78824837,0.00018612,2]
[338512973,1726713040032,-500.0,0.00018612,2]
[338512974,1726713040043,-500.0,0.00018612,2]
[338512975,1726713040053,-500.0,0.00018612,2]
[338512976,1726713040063,-572.78824837,0.00018612,2]
[338512977,1726713040076,-500.0,0.00018612,2]
[338512978,1726713040085,-500.0,0.00018612,2]
[338512979,1726713040094,-500.0,0.00018612,2]
[338512980,1726713040104,-428.39982082,0.00018612,2]
[338512992,1726713040676,-1216.0,0.00018194,2]
[338512993,1726713040687,-144.38842755,0.00018612,2]
[338512994,1726713040698,-500.0,0.00018612,2]
[338512995,1726713040709,-500.0,0.00018612,2]
[338512996,1726713040721,-572.78824837,0.00018612,2]
[338512997,1726713040731,-500.0,0.00018612,2]
[338512998,1726713040744,-572.78824837,0.00018612,2]
[338512999,1726713040755,-500.0,0.00018612,2]
[338513000,1726713040767,-572.78824837,0.00018612,2]
[338513001,1726713040778,-500.0,0.00018612,2]
[338513002,1726713040789,-572.78824837,0.00018612,2]
[338513003,1726713040798,-500.0,0.00018612,2]
[338513004,1726713040808,-154.94288921,0.00018612,2]
[338513005,1726713040819,-572.78824837,0.00018612,2]
[338513006,1726713040828,-500.0,0.00018612,2]
[338513007,1726713040837,-500.0,0.00018612,2]
[338513008,1726713040847,-572.78824837,0.00018612,2]
[338513009,1726713040856,-500.0,0.00018612,2]
[338513010,1726713040864,-500.0,0.00018612,2]
[338513011,1726713040874,-572.78824837,0.00018612,2]
[338513012,1726713040883,-500.0,0.00018612,2]
[338513013,1726713040892,-572.78824837,0.00018612,2]
[338513014,1726713040902,-500.0,0.00018612,2]
[338513015,1726713040912,-500.0,0.00018612,2]
[338513016,1726713040922,-572.78824837,0.00018612,2]
[338513017,1726713040931,-500.0,0.00018612,2]
[338513018,1726713040942,-572.78824837,0.00018612,2]
[338513019,1726713040952,-500.0,0.00018612,2]
[338513020,1726713040963,-572.78824837,0.00018612,2]
[338513021,1726713040973,-500.0,0.00018612,2]
[338513022,1726713040983,-572.78824837,0.00018612,2]
[338513023,1726713040992,-572.78824837,0.00018612,2]
[338513024,1726713041002,-572.78824837,0.00018612,2]
[338513025,1726713041011,-500.0,0.00018612,2]
[338513026,1726713041021,-500.0,0.00018612,2]
[338513027,1726713041030,-572.78824837,0.00018612,2]
[338513028,1726713041040,-500.0,0.00018612,2]
[338513029,1726713041049,-572.78824837,0.00018612,2]
[338513030,1726713041058,-589.3699144,0.00018612,2]
[338513031,1726713041068,-500.0,0.00018612,2]
[338513032,1726713041078,-572.78824837,0.00018612,2]
[338513033,1726713041088,-500.0,0.00018612,2]
[338513034,1726713041099,-572.78824837,0.00018612,2]
[338513035,1726713041110,-500.0,0.00018612,2]
[338513036,1726713041121,-572.78824837,0.00018612,2]
[338513037,1726713041130,-500.0,0.00018612,2]
[338513038,1726713041142,-500.0,0.00018612,2]
[338513039,1726713041151,-572.78824837,0.00018612,2]
[338513040,1726713041162,-500.0,0.00018612,2]
[338513041,1726713041174,-572.78824837,0.00018612,2]
[338513042,1726713041185,-500.0,0.00018612,2]
[338513043,1726713041196,-572.78824837,0.00018612,2]
[338513044,1726713041209,-500.0,0.00018612,2]
[338513045,1726713041220,-572.78824837,0.00018612,2]
[338513046,1726713041230,-500.0,0.00018612,2]
[338513047,1726713041241,-572.78824837,0.00018612,2]
[338513048,1726713041250,-500.0,0.00018612,2]
[338513049,1726713041261,-572.78824837,0.00018612,2]
[338513050,1726713041436,-500.0,0.00018612,2]
[338513051,1726713041451,-572.78824837,0.00018612,2]
[338513052,1726713041462,-500.0,0.00018612,2]
[338513053,1726713041473,-572.78824837,0.00018612,2]
[338513054,1726713041482,-500.0,0.00018612,2]
[338513055,1726713041493,-572.78824837,0.00018612,2]
[338513056,1726713041502,-572.78824837,0.00018612,2]
[338513057,1726713041513,-500.0,0.00018612,2]
[338513058,1726713041523,-572.78824837,0.00018612,2]
[338513059,1726713041532,-572.78824837,0.00018612,2]
[338513060,1726713041541,-572.78824837,0.00018612,2]
[338513061,1726713041551,-572.78824837,0.00018612,2]
[338513062,1726713041560,-572.78824837,0.00018612,2]
[338513063,1726713041569,-572.78824837,0.00018612,2]
[338513064,1726713041582,-572.78824837,0.00018612,2]
[338513065,1726713041592,-500.0,0.00018612,2]
[338513066,1726713041601,-151.0,0.00018613,2]
[338513067,1726713041610,-151.0,0.00018613,2]
[338513068,1726713041619,-151.0,0.00018613,2]
[338513069,1726713041628,-2328.800438,0.00018613,2]
[338513070,1726713041639,-2328.800438,0.00018613,2]
[338513071,1726713041650,-151.311308,0.00018613,2]
[338513072,1726713041660,-57044.75679783,0.00018613,5]
[338513073,1726713041670,-79868.0720292,0.00018613,2]
[338513074,1726713041679,-3062.7365855,0.00018613,2]
[338513075,1726713041694,-1155.34666697,0.00018613,2]
[338513076,1726713041703,-500.0,0.00018613,2]
[338513077,1726713041712,-449.09028421,0.00018613,2]
[338513078,1726713041721,-500.0,0.00018613,2]
[338513079,1726713041731,-500.0,0.00018613,2]
[338513080,1726713041743,-500.0,0.00018613,2]
[338513081,1726713041753,-500.0,0.00018613,2]
[338513082,1726713041762,-455.73788685,0.00018613,2]
[338513083,1726713041771,-500.0,0.00018613,2]
[338513084,1726713041782,-500.0,0.00018613,2]
[338513085,1726713041792,-500.0,0.00018613,2]
[338513086,1726713041802,-376.98549339,0.00018613,2]
[338513087,1726713041812,-500.0,0.00018613,2]
[338513088,1726713041825,-160.13237931,0.00018613,2]
[338513089,1726713041835,-500.0,0.00018613,2]
[338513090,1726713041845,-500.0,0.00018613,2]
[338513091,1726713041855,-500.0,0.00018613,2]
[338513092,1726713041866,-500.0,0.00018613,2]
[338513093,1726713041876,-500.0,0.00018613,2]
[338513094,1726713041886,-500.0,0.00018613,2]
[338513095,1726713041895,-500.0,0.00018613,2]
[338513096,1726713041907,-500.0,0.00018613,2]
[338513097,1726713041917,-500.0,0.00018613,2]
[338513098,1726713041928,-500.0,0.00018613,2]
[338513099,1726713041939,-500.0,0.00018613,2]
[338513100,1726713041951,-500.0,0.00018613,2]
[338513101,1726713041962,-500.0,0.00018613,2]
[338513102,1726713041972,-79868.0720292,0.00018614,2]
[338513103,1726713041983,-4218.08325247,0.00018614,2]
[338513104,1726713041992,-151.0,0.00018614,2]
[338513105,1726713042003,-151.0,0.00018614,2]
[338513106,1726713042014,-152.253317,0.00018614,2]
[338513107,1726713042025,-2328.800438,0.00018614,2]
[338513108,1726713042036,-2328.800438,0.00018614,2]
[338513109,1726713042046,-5000.0,0.00018614,2]
[338513110,1726713042055,-3638.549127,0.00018614,2]
[338513111,1726713042067,-79868.0720292,0.00018614,2]
[338513112,1726713042087,-4218.08325247,0.00018614,2]
[338513113,1726713042097,-157.13720827,0.00018614,2]
[338513114,1726713042107,-159736.144058,0.00018614,2]
[338513115,1726713042118,-42180.8325247,0.00018614,2]
[338513116,1726713042128,-151.0,0.00018615,2]
[338513117,1726713042138,-151.0,0.00018615,2]
[338513118,1726713042148,-2328.800438,0.00018615,2]
[338513119,1726713042159,-2328.800438,0.00018615,2]
[338513120,1726713042170,-153.278653,0.00018622,2]
[338513121,1726713042180,-151.0,0.00018622,2]
[338513122,1726713042190,-2328.800438,0.00018622,2]
[338513123,1726713042200,-2328.800438,0.00018622,2]
[338513124,1726713042211,-170.937162,0.00018624,2]
[338513125,1726713042222,-219.334461,0.00018624,2]
[338513126,1726713042232,-219.334461,0.00018624,2]
[338513127,1726713042242,-361.737744,0.00018624,2]
[338513128,1726713042251,-219.334461,0.00018624,2]
[338513129,1726713042262,-361.737744,0.00018624,2]
[338513130,1726713042272,-219.334461,0.00018624,2]
[338513131,1726713042282,-361.737744,0.00018624,2]
[338513132,1726713042293,-361.737744,0.00018624,2]
[338513133,1726713042303,-151.0,0.00018624,2]
[338513134,1726713042314,-151.0,0.00018624,2]
[338513135,1726713042330,-151.0,0.00018624,2]
[338513136,1726713042341,-431.051198,0.00018624,2]
[338513137,1726713042353,-154.681177,0.00018624,2]
[338513138,1726713042362,-431.051198,0.00018624,2]
[338513139,1726713042374,-431.051198,0.00018624,2]
[338513140,1726713042384,-431.051198,0.00018624,2]
[338513141,1726713042393,-151.0,0.00018624,2]
[338513142,1726713042402,-151.0,0.00018624,2]
[338513143,1726713042411,-792.112847,0.00018624,2]
[338513144,1726713042421,-792.112847,0.00018624,2]
[338513145,1726713042430,-792.112847,0.00018624,2]
[338513146,1726713042440,-792.112847,0.00018624,2]
[338513147,1726713042449,-1167.101132,0.00018624,2]
[338513148,1726713042459,-1167.101132,0.00018624,2]
[338513149,1726713042468,-1167.101132,0.00018624,2]
[338513150,1726713042478,-1167.101132,0.00018624,2]
[338513151,1726713042487,-268.716473,0.00018624,2]
[338513152,1726713042496,-268.716473,0.00018624,2]
[338513153,1726713042506,-1285.332963,0.00018624,2]
[338513154,1726713042515,-1285.332963,0.00018624,2]
[338513155,1726713042524,-268.716473,0.00018624,2]
[338513156,1726713042534,-268.716473,0.00018624,2]
[338513157,1726713042544,-1285.332963,0.00018624,2]
[338513158,1726713042555,-1285.332963,0.00018624,2]
[338513159,1726713042566,-228.4994,0.00018624,2]
[338513160,1726713042578,-740.459773,0.00018624,2]
[338513161,1726713042589,-740.459773,0.00018624,2]
[338513162,1726713042599,-740.459773,0.00018624,2]
[338513163,1726713042610,-740.459773,0.00018624,2]
[338513164,1726713042621,-740.459773,0.00018624,2]
[338513165,1726713042632,-740.459773,0.00018624,2]
[338513166,1726713042642,-151.0,0.00018624,2]
[338513167,1726713042654,-151.0,0.00018624,2]
[338513168,1726713042664,-151.0,0.00018624,2]
[338513169,1726713042674,-299.477044,0.00018624,2]
[338513170,1726713042684,-7302.714415,0.00018624,2]
[338513171,1726713042694,-7302.714415,0.00018624,2]
[338513172,1726713042705,-7302.714415,0.00018624,2]
[338513173,1726713042715,-7302.714415,0.00018624,2]
[338513174,1726713042726,-151.0,0.00018624,2]
[338513175,1726713042737,-151.0,0.00018624,2]
[338513176,1726713042752,-151.0,0.00018624,2]
[338513177,1726713042762,-151.0,0.00018624,2]
[338513178,1726713042771,-151.0,0.00018624,2]
[338513179,1726713042783,-151.0,0.00018624,2]
[338513180,1726713042793,-151.0,0.00018624,2]
[338513181,1726713042803,-275.975488,0.00018624,2]
[338513182,1726713042811,-408.71511,0.00018624,2]
[338513183,1726713042823,-408.71511,0.00018624,2]
[338513184,1726713042834,-408.71511,0.00018624,2]
[338513185,1726713042844,-408.71511,0.00018624,2]
[338513186,1726713042854,-408.71511,0.00018624,2]
[338513187,1726713042864,-408.71511,0.00018624,2]
[338513188,1726713042875,-151.0,0.00018624,2]
[338513189,1726713042885,-151.0,0.00018624,2]
[338513190,1726713042895,-151.0,0.00018624,2]
[338513191,1726713042905,-1305.504111,0.00018624,2]
[338513192,1726713042915,-1305.504111,0.00018624,2]
[338513194,1726713042924,-1305.504111,0.00018624,2]
[338513195,1726713042934,-1305.504111,0.00018624,2]
[338513196,1726713042944,-1305.504111,0.00018624,2]
[338513197,1726713042954,-1305.504111,0.00018624,2]
[338513198,1726713042964,-151.0,0.00018624,2]
[338513199,1726713042974,-151.0,0.00018624,2]
[338513200,1726713042984,-2328.800438,0.00018624,2]
[338513201,1726713042995,-2328.800438,0.00018624,2]
[338513202,1726713043004,-2328.800438,0.00018624,2]
[338513203,1726713043015,-2328.800438,0.00018624,2]
[338513204,1726713043025,-1906.867415,0.00018624,2]
[338513206,1726713043035,-1906.867415,0.00018624,2]
[338513208,1726713043044,-1906.867415,0.00018624,2]
[338513209,1726713043053,-1906.867415,0.00018624,2]
[338513211,1726713043064,-4218.08325247,0.00018625,2]
[338513212,1726713043074,-500.0,0.0001863,2]
[338513213,1726713043085,-500.0,0.0001863,2]
[338513214,1726713043095,-500.0,0.0001863,2]
[338513215,1726713043106,-500.0,0.0001863,2]
[338513216,1726713043118,-500.0,0.0001863,2]
[338513217,1726713043127,-219.334461,0.00018634,2]
[338513218,1726713043139,-361.737744,0.00018634,2]
[338513219,1726713043150,-219.334461,0.00018634,2]
[338513220,1726713043161,-361.737744,0.00018634,2]
[338513221,1726713043171,-151.0,0.00018634,2]
[338513222,1726713043182,-431.051198,0.00018634,2]
[338513223,1726713043195,-431.051198,0.00018634,2]
[338513224,1726713043207,-151.0,0.00018634,2]
[338513225,1726713043217,-792.112847,0.00018634,2]
[338513226,1726713043227,-792.112847,0.00018634,2]
[338513227,1726713043239,-1167.101132,0.00018634,2]
[338513228,1726713043250,-1167.101132,0.00018634,2]
[338513229,1726713043260,-268.716473,0.00018634,2]
[338513230,1726713043271,-1285.332963,0.00018634,2]
[338513231,1726713043280,-268.716473,0.00018634,2]
[338513232,1726713043291,-1285.332963,0.00018634,2]
[338513233,1726713043302,-740.459773,0.00018634,2]
[338513234,1726713043312,-740.459773,0.00018634,2]
[338513235,1726713043321,-151.0,0.00018634,2]
[338513236,1726713043331,-7302.714415,0.00018634,2]
[338513237,1726713043340,-7302.714415,0.00018634,2]
[338513238,1726713043350,-151.0,0.00018634,2]
[338513239,1726713043360,-151.0,0.00018634,2]
[338513240,1726713043370,-408.71511,0.00018634,2]
[338513241,1726713043379,-408.71511,0.00018634,2]
[338513242,1726713043389,-153.943558,0.00018634,2]
[338513243,1726713043398,-1305.504111,0.00018634,2]
[338513244,1726713043408,-1305.504111,0.00018634,2]
[338513245,1726713043418,-246.547365,0.00018634,2]
[338513246,1726713043427,-2328.800438,0.00018634,2]
[338513247,1726713043437,-2328.800438,0.00018634,2]
[338513248,1726713043447,-1906.867415,0.00018634,2]
[338513249,1726713043458,-1906.867415,0.00018634,2]
[338513250,1726713043468,-12654.2497574,0.00018634,2]
[338513251,1726713043477,-184.83287,0.00018635,2]
[338513252,1726713043488,-151.0,0.00018635,2]
[338513253,1726713043500,-277.630093,0.00018635,2]
[338513254,1726713043511,-219.334461,0.00018635,2]
[338513255,1726713043520,-219.334461,0.00018635,2]
[338513256,1726713043531,-361.737744,0.00018635,2]
[338513257,1726713043540,-361.737744,0.00018635,2]
[338513258,1726713043551,-151.0,0.00018635,2]
[338513259,1726713043561,-618.46827,0.00018635,2]
[338513260,1726713043571,-618.46827,0.00018635,2]
[338513261,1726713043583,-431.051198,0.00018635,2]
[338513262,1726713043594,-151.0,0.00018635,2]
[338513263,1726713043603,-431.051198,0.00018635,2]
[338513264,1726713043612,-151.0,0.00018635,2]
[338513265,1726713043623,-151.0,0.00018635,2]
[338513266,1726713043635,-792.112847,0.00018635,2]
[338513267,1726713043645,-792.112847,0.00018635,2]
[338513268,1726713043655,-1167.101132,0.00018635,2]
[338513269,1726713043665,-1167.101132,0.00018635,2]
[338513270,1726713043676,-268.716473,0.00018635,2]
[338513271,1726713043686,-1285.332963,0.00018635,2]
[338513272,1726713043695,-268.716473,0.00018635,2]
[338513274,1726713043704,-1285.332963,0.00018635,2]
[338513276,1726713043715,-740.459773,0.00018635,2]
[338513278,1726713043726,-740.459773,0.00018635,2]
[338513279,1726713043736,-151.0,0.00018635,2]
[338513280,1726713043752,-7302.714415,0.00018635,2]
[338513281,1726713043762,-7302.714415,0.00018635,2]
[338513282,1726713043772,-151.0,0.00018635,2]
[338513283,1726713043783,-151.0,0.00018635,2]
[338513284,1726713043792,-408.71511,0.00018635,2]
[338513285,1726713043801,-408.71511,0.00018635,2]
[338513286,1726713043811,-1305.504111,0.00018635,2]
[338513287,1726713043824,-1305.504111,0.00018635,2]
[338513288,1726713043971,-2328.800438,0.00018635,2]
[338513289,1726713043983,-2328.800438,0.00018635,2]
[338513290,1726713043995,-1906.867415,0.00018635,2]
[338513291,1726713044005,-1906.867415,0.00018635,2]
[338513292,1726713044017,-151.0,0.00018643,2]
[338513293,1726713044027,-155.135275,0.00018643,2]
[338513294,1726713044035,-618.46827,0.00018643,2]
[338513295,1726713044045,-618.46827,0.00018643,2]
[338513296,1726713044054,-618.46827,0.00018643,2]
[338513297,1726713044063,-618.46827,0.00018643,2]
[338513298,1726713044074,-151.0,0.00018643,2]
[338513299,1726713044084,-151.0,0.00018643,2]
[338513300,1726713044095,-151.0,0.00018643,2]
[338513301,1726713044106,-151.0,0.00018643,2]
[338513302,1726713044116,-12654.2497574,0.00018644,2]
[338513303,1726713044128,-151.0,0.00018644,2]
[338513304,1726713044140,-151.0,0.00018644,2]
[338513305,1726713044149,-151.0,0.00018644,2]
[338513306,1726713044159,-151.0,0.00018644,2]
[338513307,1726713044168,-151.0,0.00018644,2]
[338513308,1726713044178,-151.0,0.00018644,2]
[338513309,1726713044187,-151.0,0.00018644,2]
[338513310,1726713044197,-151.0,0.00018644,2]
[338513311,1726713044209,-151.0,0.00018644,2]
[338513312,1726713044218,-1236.458,0.00018644,2]
[338513313,1726713044228,-1236.458,0.00018644,2]
[338513314,1726713044238,-1236.458,0.00018644,2]
[338513315,1726713044248,-1236.458,0.00018644,2]
[338513316,1726713044258,-1236.458,0.00018644,2]
[338513317,1726713044267,-1236.458,0.00018644,2]
[338513318,1726713044276,-151.0,0.00018644,2]
[338513319,1726713044286,-151.0,0.00018644,2]
[338513320,1726713044295,-151.0,0.00018644,2]
[338513321,1726713044304,-151.0,0.00018644,2]
[338513322,1726713044314,-151.0,0.00018644,2]
[338513323,1726713044324,-151.0,0.00018644,2]
[338513324,1726713044334,-151.0,0.00018644,2]
[338513325,1726713044344,-151.0,0.00018644,2]
[338513326,1726713044353,-151.532036,0.00018644,2]
[338513327,1726713044363,-151.0,0.00018644,2]
[338513328,1726713044373,-151.0,0.00018644,2]
[338513329,1726713044383,-151.0,0.00018644,2]
[338513330,1726713044392,-153.2169,0.00018644,2]
[338513331,1726713044402,-151.0,0.00018644,2]
[338513332,1726713044412,-151.0,0.00018644,2]
[338513333,1726713044422,-151.0,0.00018644,2]
[338513334,1726713044432,-151.0,0.00018644,2]
[338513335,1726713044442,-151.0,0.00018644,2]
[338513336,1726713044451,-151.0,0.00018644,2]
[338513337,1726713044460,-752.861092,0.00018644,2]
[338513338,1726713044470,-752.861092,0.00018644,2]
[338513339,1726713044480,-151.0,0.00018644,2]
[338513340,1726713044490,-752.861092,0.00018644,2]
[338513341,1726713044499,-151.0,0.00018644,2]
[338513342,1726713044509,-752.861092,0.00018644,2]
[338513343,1726713044519,-752.861092,0.00018644,2]
[338513344,1726713044530,-752.861092,0.00018644,2]
[338513345,1726713044540,-220.045586,0.00018644,2]
[338513346,1726713044550,-220.045586,0.00018644,2]
[338513347,1726713044559,-220.045586,0.00018644,2]
[338513348,1726713044569,-220.045586,0.00018644,2]
[338513349,1726713044580,-220.045586,0.00018644,2]
[338513350,1726713044590,-220.045586,0.00018644,2]
[338513351,1726713044600,-220.045586,0.00018644,2]
[338513352,1726713044610,-220.045586,0.00018644,2]
[338513353,1726713044619,-151.0,0.00018644,2]
[338513354,1726713044630,-197.491531,0.00018644,2]
[338513355,1726713044639,-152.31442,0.00018644,2]
[338513356,1726713044650,-328.468785,0.00018644,2]
[338513357,1726713044659,-328.468785,0.00018644,2]
[338513358,1726713044668,-328.468785,0.00018644,2]
[338513359,1726713044677,-328.468785,0.00018644,2]
[338513360,1726713044687,-328.468785,0.00018644,2]
[338513361,1726713044696,-328.468785,0.00018644,2]
[338513362,1726713044707,-328.468785,0.00018644,2]
[338513363,1726713044718,-328.468785,0.00018644,2]
[338513364,1726713044728,-328.468785,0.00018644,2]
[338513365,1726713044739,-328.468785,0.00018644,2]
[338513366,1726713044752,-1182.021974,0.00018644,2]
[338513367,1726713044761,-1182.021974,0.00018644,2]
[338513368,1726713044771,-1052.151176,0.00018644,2]
[338513369,1726713044781,-1052.151176,0.00018644,2]
[338513370,1726713044791,-1052.151176,0.00018644,2]
[338513371,1726713044801,-1052.151176,0.00018644,2]
[338513372,1726713044810,-1052.151176,0.00018644,2]
[338513373,1726713044823,-1182.021974,0.00018644,2]
[338513374,1726713044832,-1182.021974,0.00018644,2]
[338513375,1726713044842,-1052.151176,0.00018644,2]
[338513376,1726713044851,-1052.151176,0.00018644,2]
[338513378,1726713044861,-1052.151176,0.00018644,2]
[338513380,1726713044871,-151.0,0.00018644,2]
[338513381,1726713044881,-1052.151176,0.00018644,2]
[338513382,1726713044890,-151.0,0.00018644,2]
[338513383,1726713044899,-1052.151176,0.00018644,2]
[338513384,1726713044909,-764.110712,0.00018644,2]
[338513385,1726713044919,-764.110712,0.00018644,2]
[338513386,1726713044929,-764.110712,0.00018644,2]
[338513387,1726713044938,-764.110712,0.00018644,2]
[338513388,1726713044948,-764.110712,0.00018644,2]
[338513389,1726713044959,-151.0,0.00018644,2]
[338513390,1726713044969,-151.0,0.00018644,2]
[338513391,1726713044978,-764.110712,0.00018644,2]
[338513392,1726713044991,-764.110712,0.00018644,2]
[338513393,1726713045002,-764.110712,0.00018644,2]
[338513394,1726713045013,-764.110712,0.00018644,2]
[338513395,1726713045024,-764.110712,0.00018644,2]
[338513396,1726713045033,-219.334461,0.00018644,2]
[338513397,1726713045043,-219.334461,0.00018644,2]
[338513398,1726713045052,-219.334461,0.00018644,2]
[338513399,1726713045062,-361.737744,0.00018644,2]
[338513400,1726713045073,-219.334461,0.00018644,2]
[338513401,1726713045083,-361.737744,0.00018644,2]
[338513402,1726713045093,-219.334461,0.00018644,2]
[338513403,1726713045102,-361.737744,0.00018644,2]
[338513404,1726713045112,-219.334461,0.00018644,2]
[338513405,1726713045121,-361.737744,0.00018644,2]
[338513406,1726713045131,-361.737744,0.00018644,2]
[338513407,1726713045141,-361.737744,0.00018644,2]
[338513408,1726713045151,-151.0,0.00018644,2]
[338513409,1726713045160,-151.0,0.00018644,2]
[338513410,1726713045170,-152.889009,0.00018644,2]
[338513411,1726713045180,-618.46827,0.00018644,2]
[338513412,1726713045190,-618.46827,0.00018644,2]